Cogmind - Beta 16 @@@ ROGUE MODE // 2025.12.08 @ 20:49:09 Player: AlcoholicAardvark Result: Destroyed by D-53 Grenadier with Mini Grenade Launcher Performance ------------- Evolutions (0) 0 Regions Visited (0) 0 Robots Destroyed (1) 5 Value Destroyed (53) 53 Prototype IDs (0) 0 Alien Tech Used (0) 0 Bonus (0) 0 TOTAL SCORE: 58 Bonus ------- None Cogmind --------- Core Integrity 0/250 Matter 170/300 Energy 99/100 System Corruption 0% Temperature Cool (0) Movement Walking (120) Location -11/Scrapyard Parts ------- > --- POWER (1) -------- (None) > --- PROPULSION (2) --- Aluminum Leg > --- UTILITY (2) ------ Small Storage Unit > --- WEAPON (2) ------- Assault Rifle > --- INVENTORY (8) ---- Light Ion Engine Peak State ------------ > --- POWER ------------ Light Ion Engine > --- PROPULSION ------- Aluminum Leg Aluminum Leg > --- UTILITY ---------- Small Storage Unit > --- WEAPON ----------- EM Pulse Gun Small Laser > --- INVENTORY -------- Light Ion Engine Assault Rifle [Rating: 6] Favorites ----------- Power Light Ion Engine Engine Light Ion Engine Propulsion Aluminum Leg Leg Aluminum Leg Utility Small Storage Unit Storage Small Storage Unit Weapon EM Pulse Gun Energy Gun EM Pulse Gun Ballistic Gun Assault Rifle Build | -11 ------- Run | Yrd Slots Evolved . | . Power . | . Propulsion . | . Utility . | . Weapon . | . Parts Attached 7 | 7 Power 1 | 1 Engine 1 | 1 Core . | . Reactor . | . Propulsion 2 | 2 Treads . | . Leg 2 | 2 Wheel . | . Hover . | . Flight . | . Utility 1 | 1 Device . | . Storage 1 | 1 Processor . | . Hackware . | . Protection . | . Artifact . | . Weapon 3 | 3 Energy Gun 2 | 2 Energy Cannon . | . Ballistic Gun 1 | 1 Ballistic Cannon . | . Launcher . | . Special Weapon . | . Impact Weapon . | . Slashing Weapon . | . Piercing Weapon . | . Special Melee Weapon . | . Unidentified Prototypes . | . Parts Lost 4 | 4 Power 1 | 1 Propulsion 1 | 1 Utility . | . Weapon 2 | 2 Highest Loss Streak 4 | 4 To Critical Strikes . | . Average Backups 1 | 1 Power . | . Propulsion . | . Utility . | . Weapon . | . Tool/Special . | . Unused Backups 1 | 1 Power 1 | 1 Propulsion . | . Utility . | . Weapon . | . Tool/Special . | . Average Slot Usage (%) . | . Peak Build Rating 6 | 6 Average Rating 5 | 5 On Entrance . | . Avg Prop Armor Cover (%) . | . Naked Turns . | . Heaviest Build 11 | 11 Greatest Support 20 | 20 Greatest Overweight (x) 3 | 3 Average Overweight (x) . | . Largest Inventory Capacity 8 | 8 Average Capacity 7 | 7 Most Carried 2 | 2 Average Carried 1 | 1 Final Capacity 8 | 8 Final Carried 1 | 1 Class Distribution -------------------- None Dominant Class ---------------- None Resources | -11 ----------- Run | Yrd Matter Collected 138 | 138 Remotely . | . Salvage Created 15 | 15 Parts 3 | 3 Haulers Intercepted . | . Recyclers Shooed . | . Parts Field Recycled . | . Retrieved Matter . | . Parts Self-Destructed . | . Prevented . | . Parts Restored . | . Kills | -11 ------- Run | Yrd Combat Hostiles Destroyed 1 | 1 Guns 1 | 1 Classes Destroyed 1 | 1 Demolisher 1 | 1 Best Kill Streak 1 | 1 Combat Bots Only 1 | 1 Max Kills in Single Turn 1 | 1 Gunslinging . | . Exploded . | . Melee . | . Uniques/NPCs Destroyed . | . Combat | -11 -------- Run | Yrd Hostile Shots Fired 42 | 42 Missed 16 | 16 Hits 26 | 26 Projectile 26 | 26 AOE 13 | 13 Part Disruptions 2 | 2 Damage Taken 687 | 687 Core 259 | 259 Absorbed by Shields . | . Core Remaining (%) . | . Volleys Fired 7 | 7 Largest 1 | 1 Hottest 40 | 40 Shots Fired 7 | 7 Gun 7 | 7 Cannon . | . Launcher . | . Special . | . Kinetic 6 | 6 Thermal . | . Explosive . | . Electromagnetic 1 | 1 Robot Hit Streak 5 | 5 Robot Miss Streak 2 | 2 Penetration Max . | . Secondary Targets . | . Shots Hit Robots 5 | 5 Core Hits 2 | 2 Critical Kills . | . Critical Parts Destroyed . | . Critical Strikes . | . Melee Attacks . | . Impact . | . Slashing . | . Piercing . | . Sneak Attacks . | . Combat Hostiles . | . Follow-up Attacks . | . Damage Inflicted 59 | 59 Guns 59 | 59 Cannons . | . Explosions . | . Melee . | . Ramming . | . Kinetic 59 | 59 Thermal . | . Explosive . | . Electromagnetic . | . Impact . | . Slashing . | . Piercing . | . Highest Corruption . | . Average Corruption . | . Corruption Purged . | . Corruption Blocked . | . Overload Shots . | . Overflow Damage . | . Projectiles . | . Explosions . | . Melee . | . Knockbacks . | . Impact . | . Kinetic . | . Secondary . | . Self-Inflicted Damage . | . Shots . | . Rammed . | . Targets Rammed . | . Kicked . | . Crushed . | . Highest Temperature 2 | 2 Average Temperature 2 | 2 Received Heat Transfer 100 | 100 Siege Activations . | . Martial Activations . | . Shielding Activations . | . Robots Disrupted . | . Combat Hostiles . | . Robots Corrupted . | . Combat Hostiles . | . Parts Fried . | . Impact Corruptions . | . Robots Melted . | . Combat Hostiles . | . Parts Melted . | . Heat Transferred . | . Parts Sabotaged . | . Parts Stolen . | . Parts Stripped . | . Power Chain Reactions . | . Alert | -11 ------- Run | Yrd Maximum Alert Level . | . Low Security (%) 100 | 100 Level 1 . | . Level 2 . | . Level 3 . | . Level 4 . | . Level 5 . | . High Security . | . Max Security . | . Peak Influence 30 | 30 Initial . | . Average . | . Influence Increases 30 | 30 Destroy 0b10 Robot/C 20 | 20 Destroy Leader 10 | 10 Influence Decreases 2 | 2 Time Decay 2 | 2 Squads Dispatched . | . Investigation . | . Extermination . | . Reinforcement . | . Assault . | . Garrison . | . Intercept . | . Searches Triggered . | . Construction Impeded . | . Haulers Reinforced . | . Active Scanning Responses . | . Cargo Convoy Interrupts . | . Stealth | -11 --------- Run | Yrd Distress Signals . | . Communications Jammed . | . Distress Signals . | . Times Spotted 23 | 23 Peak Tracking Total 20 | 20 Tactical Retreats 1 | 1 Traps | -11 ------- Run | Yrd Traps Triggered . | . Indirectly . | . Trap Hack Attempts . | . Triggered . | . Disarmed . | . Reprogrammed . | . Reused . | . Traps Extracted . | . Installed . | . Triggered . | . Machines | -11 ---------- Run | Yrd Machines Disabled . | . Max in Single Turn . | . Machines Repaired . | . Machines Dismantled . | . Machines Sabotaged . | . Overloaded Fab Kills . | . Hacking | -11 --------- Run | Yrd Machines Accessed . | . Terminals . | . Fabricators . | . Repair Stations . | . Recycling Units . | . Scanalyzers . | . Garrison Access . | . Total Hacks . | . Successful . | . Failed . | . Catastrophic . | . Database Lockouts . | . Manual . | . Terminals . | . Fabricators . | . Repair Stations . | . Recycling Units . | . Scanalyzers . | . Garrison Access . | . Terminal Hacks . | . Fabricator Hacks . | . Repair Station Hacks . | . Recycling Unit Hacks . | . Scanalyzer . | . Garrison Access Hacks . | . Unauthorized Hacks . | . Terminals . | . Fabricators . | . Repair Stations . | . Recycling Units . | . Scanalyzers . | . Garrison Access . | . Data Cores Recovered . | . Used . | . Hacking Detections . | . Full Trace Events . | . Feedback Events . | . Feedback Blocked . | . Robot Schematics Acquired . | . Robots Built . | . Authchips . | . Time . | . Total Robot Build Rating . | . Part Schematics Acquired . | . Parts Built . | . Authchips . | . Time . | . Total Part Build Rating . | . Part Studies Acquired . | . Parts Repaired . | . Time . | . Parts Recycled . | . Recycled Matter . | . Retrieved Matter . | . Retrieved Components . | . Parts Scanalyzed . | . Part Schematics Acquired . | . Parts Damaged . | . Bothacking | -11 ------------ Run | Yrd Used RIF Installer . | . Robots Hacked . | . Non-combat . | . Combat . | . Robot Hacks Applied . | . Relay Couplers Released . | . Fabnet Peak Effective % . | . Robots Rewired . | . Allies Hacked . | . Hacks Repelled . | . Allies | -11 -------- Run | Yrd Total Allies . | . Largest Group . | . Highest-Rated Group . | . Highest-Rated Ally . | . Total Orders . | . Ally Attacks . | . Total Damage . | . Kills . | . Allies Corrupted . | . Allies Melted . | . Intel | -11 ------- Run | Yrd Active Infowar (turns) . | . Robot Analysis Total . | . Derelict Logs Recovered . | . Drone Launches . | . Drone Recoveries . | . Exploration | -11 ------------- Run | Yrd Turns Passed 2120 | 2120 Spaces Moved 193 | 193 Core 22 | 22 Treads . | . Legs 171 | 171 Wheels . | . Hover . | . Flight . | . Fastest Speed 50 | 50 Average Speed 120 | 120 Slowest Speed 200 | 200 Overloaded Moves . | . Propulsion Burnouts . | . Robots Hopped . | . Potential Cave-ins . | . Cave-ins Triggered . | . Exploration Rate (%) 26 | 26 Regions Visited . Branch Regions . Pre-discovered Areas . | . Known Exits Taken . | . Unknown Exits Taken . | . Scrap Searched . | . Spaces Dug . | . Terrain Destroyed . | . Melee . | . Projectile . | . AOE . | . Terrain Rammed . | . Walls Destroyed . | . Machines Disabled . | . Actions | -11 --------- Run | Yrd Total 2071 | 2071 Wait 1862 | 1862 Move 193 | 193 Hop . | . Pick Up 2 | 2 Fast Attach 6 | 6 Attach 1 | 1 Detach . | . Swap . | . Drop . | . Fire 7 | 7 Melee . | . Ram . | . Kick . | . Crush . | . Escape Stasis . | . Rewire . | . Trap . | . Miscellaneous . | . Route ------- -11/Scrapyard (discovered 1 exit: [*Mat]) History --------- Turn | Location | Event 28 | -11/Scrapyard | Discovered new exit (range 15) 2075 | -11/Scrapyard | Assembled infested the area 2113 | -11/Scrapyard | Core integrity fell below 50% 2115 | -11/Scrapyard | Core integrity fell below 20% 2121 | -11/Scrapyard | Destroyed by D-53 Grenadier with Mini Grenade Launcher Last Messages --------------- C-45 Heavy ARC bursts open, deploying its payload. D-53 Grenadier unfolds itself. as-26118 destroyed. as-05679 destroyed. as-34791 destroyed. The unstable cave ceiling collapses. Sml. Laser destroyed. as-52287 destroyed. as-04300 destroyed. as-12769 destroyed. as-10123 destroyed. as-22531 destroyed. as-95934 destroyed. as-40041 destroyed. EM Pulse Gun destroyed. Aluminum Leg destroyed. The unstable cave ceiling collapses. Lgt. Ion Engine destroyed. D-53 Grenadier destroyed. Map ----- +----------------------------------------------------+ | | | | | | | | | | | | | | | ????????????????????####?????????????????????????? | | ??????????????###### #?????????????????????????? | | ??????????????# #?????????????????????????? | | ??????????????# #?????????????????????????? | | ??????????????# #?????????????????????????? | | ##????????????### #?????????????????????????? | | "##??????????## #?????????????????????????? | | "??????????# #?????????????????????????? | | " ???????????# #?????????????????????????? | | " ???????????# #?????????????????????????? | | "???????????##### ###########??????????????????? | | " ???????????#### #??????????????????? | | ???????????# # #??????????????????? | | # ############ #??????????????????? | | #|## ## #??????????????????? | | #%!# # #??????????????????? | | #= # ########???????????? | | # ? * ?????????? | | # ### ### # ]%= @ ####?????????????? | | # #????????????????? | | # #????????????????? | | ###### #### # d ##????????????????? | | ???? ?? # #????????????????? | | ???# #??### ###### #### ???????????????? | | ???# #????#### ###???###???? ?????????????? | | ???# #???????# # #??????????? ????????????? | | ???# #???????# #????????????? ???????????? | | ???# #???????#" # #??????????????#???????????? | | ???# #???????#%" #??????????????????????????? | | ???#######???????#" ########?????????????????????? | | ?????????????????# #?? #?????????????????????? | | ??????????######?# #? #?????????????????????? | | ??????????# ?# #? #?????????????????????? | | ??????????# # # #?????????????????????? | | ??????????# # # #?????????????????????? | | ??????????# #?????????????????????? | | ??????????# # ########?????????????????????? | | ??????????# # #????????????????????????????? | | ??????????######?# #????????????????????????????? | | ??????????######## #????????????????????????????? | | ?????????## # #????????????????????????????? | | ?????????# # #????????????????????????????? | | ?????????# #????????????????????????????? | +----------------------------------------------------+ Best States ------------- Heat Dissipation 25 Energy Generation 10 Energy Capacity 125 Matter Stores 183 Matter Capacity 300 Sight Range 16 Terrain Scan Density 10 Evasion (%) 55 Item Schematics ----------------- None Robot Schematics ------------------ None Fabricated ------------ Nothing Repaired ---------- Nothing Studied --------- None Alien Tech Used ----------------- None Achievements -------------- Curiosity Killed The Cat Hunted Challenges ------------ None Game ------ Seed CouplerMasterRigger Manual? 0 Play Time 00:08:38 Cumulative 19.2 hours Start 2025.12.08 @ 20:43:59 End 2025.12.08 @ 20:49:09 Sessions 0 Manual Loads 0 Difficulty Rogue Special Mode None Game No. 28 Rogue 28 Adventurer 0 Explorer 0 Win Type - Total 0 Types 0/0/0/0/0/0/0/0/0/0 Lore% 6 Gallery% 19 Achievement% 17 Wizard Run 0 Options --------- Layout 1 ASCII 0 Keyboard 0 Movement Arrows Keybinds 0 Fullscreen 1 Font 32/SmallcapsGlow Map View 50x35 Zoom Use 0% Tactical HUD 0 Map Filters NONE Filters NONE Steam 1 RUN: b159e60f-6523-41be-b230-617d8afdba2f